Cogmind - Beta 16 @@@ ROGUE MODE // 2026.01.24 @ 07:44:46 Player: Glyb Result: Destroyed by H-61 Shepherd with Heavy Assault Cannon Performance ------------- Evolutions (2) 1000 Regions Visited (3) 600 Robots Destroyed (67) 335 Value Destroyed (2155) 2155 Prototype IDs (2) 40 Alien Tech Used (0) 0 Bonus (0) 0 TOTAL SCORE: 4130 Bonus ------- None Cogmind --------- Core Integrity 0/550 Matter 81/300 Energy 33/100 System Corruption 0% Temperature Cool (0) Movement Rolling (100) Location -8/Materials Parts ------- > --- POWER (2) -------- (None) > --- PROPULSION (2) --- Armored Huge Wheel > --- UTILITY (4) ------ Reactive Plating > --- WEAPON (3) ------- Improved Light Cannon Improved Light Cannon Improved Light Cannon > --- INVENTORY (5) ---- Armored Huge Wheel Reactive Plating Mining Laser Peak State ------------ > --- POWER ------------ (None) > --- PROPULSION ------- Armored Huge Wheel > --- UTILITY ---------- Visual Processing Unit Hardened Medium Armor Plating Hacking Suite Corruption Screen > --- WEAPON ----------- Precision Beam Rifle > --- INVENTORY -------- Armored Huge Wheel Armored Huge Wheel Mining Laser [Rating: 25] Favorites ----------- Power Light Nuclear Core Engine Ion Engine Power Core Light Nuclear Core Propulsion Light Treads Treads Light Treads Leg Aluminum Leg Wheel Armored Huge Wheel Utility Heat Sink Device Heat Sink Storage Medium Storage Unit Processor Visual Processing Unit Hackware Hacking Suite Protection Hardened Medium Armor Plating Weapon Field Laser Energy Gun Field Laser Energy Cannon Advanced Beam Cannon Ballistic Gun Assault Rifle Ballistic Cannon Flak Cannon Launcher Mini Grenade Launcher Build | -11 -10 -9 -8 ------- Run | Yrd Mat Mat Mat Slots Evolved 4 | . . 2 2 Power 1 | . . . 1 Propulsion . | . . . . Utility 2 | . . 1 1 Weapon 1 | . . 1 . Parts Attached 54 | 7 4 24 19 Power 6 | 1 . 4 1 Engine 2 | 1 . 1 . Core 4 | . . 3 1 Reactor . | . . . . Propulsion 9 | 2 . 5 2 Treads 6 | 2 . 4 . Leg 1 | . . 1 . Wheel 2 | . . . 2 Hover . | . . . . Flight . | . . . . Utility 16 | 2 1 7 6 Device 7 | 1 . 6 . Storage 2 | 1 1 . . Processor 2 | . . . 2 Hackware 2 | . . 1 1 Protection 3 | . . . 3 Artifact . | . . . . Weapon 23 | 2 3 8 10 Energy Gun 13 | . 2 7 4 Energy Cannon 1 | . . 1 . Ballistic Gun 2 | 2 . . . Ballistic Cannon 5 | . . . 5 Launcher 2 | . 1 . 1 Special Weapon . | . . . . Impact Weapon . | . . . . Slashing Weapon . | . . . . Piercing Weapon . | . . . . Special Melee Weapon . | . . . . Unidentified Prototypes 2 | . . 1 1 Parts Lost 28 | . . 11 17 Power 4 | . . 2 2 Propulsion 5 | . . 2 3 Utility 9 | . . 5 4 Weapon 10 | . . 2 8 Highest Loss Streak 6 | . . 3 6 To Critical Strikes . | . . . . Average Backups 7 | 2 9 7 5 Power . | . 1 . . Propulsion 1 | . 2 1 2 Utility 1 | . 1 1 1 Weapon 3 | 1 3 3 1 Tool/Special . | . . . . Unused Backups 13 | . 4 3 6 Power . | . . . . Propulsion 6 | . 2 . 4 Utility 2 | . 1 . 1 Weapon 5 | . 1 3 1 Tool/Special . | . . . . Average Slot Usage (%) 87 | . 99 89 68 Engine 5 | . 14 2 . Core 4 | . . 7 5 Treads 19 | . 28 19 10 Device 15 | . 14 18 11 Storage 10 | . 14 11 5 Processor 2 | . . . 9 Hackware 1 | . . 1 1 Energy Gun 21 | . 13 29 16 Ballistic Gun 2 | . 9 . . Launcher 1 | . 4 . . Peak Build Rating 25 | 7 10 20 25 Average Rating 13 | 5 9 15 17 On Entrance 8 | . 7 10 17 Avg Prop Armor Cover (%) . | . . . . Naked Turns . | . . . . Heaviest Build 26 | 15 22 26 26 Greatest Support 43 | 40 40 43 43 Greatest Overweight (x) 1 | . . 1 1 Average Overweight (x) . | . . . . Largest Inventory Capacity 10 | 8 10 10 10 Average Capacity 9 | 6 9 10 8 Most Carried 10 | 4 10 10 10 Average Carried 7 | 2 9 7 6 Final Capacity 10 | 8 10 10 5 Final Carried 10 | 4 10 6 4 Class Distribution -------------------- 55% | Mutant 31% | Gunner 12% | Skirmisher Dominant Class ---------------- Mutant | -10/Materials Gunner | -9/Materials Skirmisher | -8/Materials Resources | -11 -10 -9 -8 ----------- Run | Yrd Mat Mat Mat Matter Collected 960 | 282 164 319 195 Remotely . | . . . . Salvage Created 2466 | 85 453 1352 576 Parts 120 | 7 30 64 19 Haulers Intercepted 3 | . 1 2 . Recyclers Shooed 1 | . . . 1 Parts Field Recycled . | . . . . Retrieved Matter . | . . . . Parts Self-Destructed . | . . . . Prevented . | . . . . Parts Restored . | . . . . Kills | -11 -10 -9 -8 ------- Run | Yrd Mat Mat Mat Combat Hostiles Destroyed 51 | . 13 23 15 Guns 36 | . 9 22 5 Cannons 8 | . . . 8 AOE 5 | . 4 . 1 Classes Destroyed 13 | 2 6 3 2 Worker 2 | . 1 1 . Builder 1 | . . 1 . Tunneler 1 | 1 . . . Hauler 3 | . 1 2 . Recycler 2 | 1 . 1 . Operator 2 | . 1 . 1 Watcher 5 | . 2 3 . Swarmer 3 | . 3 . . Grunt 34 | . 10 14 10 Brawler 1 | . . . 1 Duelist 4 | . . 3 1 Sentry 8 | . . 6 2 Hunter 1 | . . . 1 Best Kill Streak 10 | 2 4 7 10 Combat Bots Only 10 | . 3 6 10 Max Kills in Single Turn 3 | 1 3 2 2 Gunslinging . | . . . . Exploded 3 | . 3 . 1 Melee . | . . . . Uniques/NPCs Destroyed . | . . . . Combat | -11 -10 -9 -8 -------- Run | Yrd Mat Mat Mat Hostile Shots Fired 385 | . 51 117 217 Missed 103 | . 10 27 66 Hits 282 | . 41 90 151 Melee 8 | . . 7 1 Projectile 274 | . 41 83 150 Critical Strikes 13 | . . 5 8 Damage Taken 4101 | . 437 1305 2359 Core 880 | . 51 245 584 Absorbed by Shields . | . . . . Ignored by Resistances 33 | . . . 33 Core Remaining (%) 72 | 100 79 38 . Volleys Fired 157 | 2 41 63 51 Largest 3 | 2 2 3 3 Hottest 189 | 40 112 189 182 Shots Fired 356 | 4 72 173 107 Gun 311 | 4 69 173 65 Cannon 33 | . . . 33 Launcher 12 | . 3 . 9 Special . | . . . . Kinetic 65 | 4 28 . 33 Thermal 277 | . 41 173 63 Explosive 12 | . 3 . 9 Electromagnetic 2 | . . . 2 Robot Hit Streak 13 | 3 13 12 11 Robot Miss Streak 8 | . 4 4 8 Penetration Max . | . . . . Secondary Targets 2 | . . 2 . Max Gunslinging Chain 1 | . . 1 . Shots Hit Robots 218 | 3 44 107 64 Core Hits 137 | 3 28 43 63 Critical Kills . | . . . . Critical Parts Destroyed . | . . . . Critical Strikes 10 | . 1 7 2 Burn 10 | . 1 7 2 Melee Attacks . | . . . . Impact . | . . . . Slashing . | . . . . Piercing . | . . . . Sneak Attacks . | . . . . Combat Hostiles . | . . . . Follow-up Attacks . | . . . . Damage Inflicted 4318 | 31 1034 1951 1302 Guns 3149 | 31 614 1951 553 Cannons 565 | . . . 565 Explosions 589 | . 420 . 169 Melee . | . . . . Ramming 15 | . . . 15 Kinetic 817 | 31 221 . 565 Thermal 2887 | . 393 1951 543 Explosive 589 | . 420 . 169 Electromagnetic 10 | . . . 10 Impact . | . . . . Slashing . | . . . . Piercing . | . . . . Highest Corruption . | . . . . Average Corruption . | . . . . Corruption Purged . | . . . . Corruption Blocked 1 | . . . 1 Overload Shots . | . . . . Overflow Damage 10 | . 10 . . Projectiles . | . . . . Explosions 10 | . 10 . . Melee . | . . . . Knockbacks 2 | . . . 2 Impact . | . . . . Kinetic 2 | . . . 2 Secondary . | . . . . Self-Inflicted Damage 5 | . . . 5 Shots . | . . . . Rammed 7 | . . . 7 Targets Rammed 7 | . . . 7 Kicked . | . . . . Crushed . | . . . . Highest Temperature 539 | . 216 539 148 Average Temperature 134 | . 80 199 37 Received Heat Transfer 1914 | . 189 483 1242 Effects 12 | . . 12 . Shutdowns 7 | . . 7 . Energy Bleed 2 | . . 2 . Matter Decay 2 | . . 2 . Damage (minor) 1 | . . 1 . Siege Activations . | . . . . Martial Activations . | . . . . Shielding Activations . | . . . . Robots Disrupted . | . . . . Combat Hostiles . | . . . . Robots Corrupted . | . . . . Combat Hostiles . | . . . . Parts Fried . | . . . . Impact Corruptions . | . . . . Robots Melted 2 | . . 1 1 Combat Hostiles 2 | . . 1 1 Parts Melted 19 | . 2 14 3 Heat Transferred 7326 | . 1073 4847 1406 Parts Sabotaged . | . . . . Parts Stolen . | . . . . Parts Stripped . | . . . . Power Chain Reactions . | . . . . Alert | -11 -10 -9 -8 ------- Run | Yrd Mat Mat Mat Maximum Alert Level 1 | . . 1 1 Low Security (%) 96 | 100 100 96 90 Level 1 3 | . . 3 9 Level 2 . | . . . . Level 3 . | . . . . Level 4 . | . . . . Level 5 . | . . . . High Security . | . . . . Max Security . | . . . . Peak Influence 255 | 10 135 209 255 Initial 76 | . . 53 76 Average 65 | . 39 97 51 Influence Increases 1637 | 10 402 676 549 Destroy 0b10 Robot/C 1020 | . 260 460 300 Destroy 0b10 Robot/NC 80 | 10 25 40 5 Destroy Leader 266 | . 66 130 70 Successful Hack 19 | . 6 13 . Disable Machine 45 | . . 30 15 Destroy Structure 27 | . 15 3 9 Lose Combat Pursuer 180 | . 30 . 150 Influence Decreases 1400 | 10 273 622 495 Entered New Map 183 | . . 76 107 Time Decay 954 | 10 273 436 235 Lost Part 263 | . . 110 153 Squads Dispatched 15 | . 5 4 6 Investigation 6 | . 1 3 2 Extermination . | . . . . Reinforcement 6 | . 4 1 1 Assault . | . . . . Garrison 3 | . . . 3 Intercept . | . . . . Searches Triggered . | . . . . Construction Impeded . | . . . . Haulers Reinforced . | . . . . Active Scanning Responses . | . . . . Cargo Convoy Interrupts . | . . . . Stealth | -11 -10 -9 -8 --------- Run | Yrd Mat Mat Mat Distress Signals 6 | . 2 2 2 Communications Jammed . | . . . . Distress Signals . | . . . . Times Spotted 92 | . 26 28 38 Peak Tracking Total 14 | . 5 6 14 Tactical Retreats 5 | . 1 . 4 Traps | -11 -10 -9 -8 ------- Run | Yrd Mat Mat Mat Traps Triggered 3 | . 1 1 1 Indirectly . | . . . . Trap Hack Attempts . | . . . . Triggered . | . . . . Disarmed . | . . . . Reprogrammed . | . . . . Reused . | . . . . Traps Extracted . | . . . . Installed . | . . . . Triggered . | . . . . Machines | -11 -10 -9 -8 ---------- Run | Yrd Mat Mat Mat Machines Disabled 3 | . . 2 1 Max in Single Turn 1 | . . 1 1 Machines Repaired . | . . . . Machines Dismantled . | . . . . Machines Sabotaged . | . . . . Overloaded Fab Kills . | . . . . Hacking | -11 -10 -9 -8 --------- Run | Yrd Mat Mat Mat Machines Accessed 11 | . 3 5 3 Terminals 8 | . 3 4 1 Fabricators . | . . . . Repair Stations . | . . . . Recycling Units . | . . . . Scanalyzers 2 | . . 1 1 Garrison Access 1 | . . . 1 Total Hacks 29 | . 7 15 7 Successful 10 | . 4 5 1 Failed 19 | . 3 10 6 Catastrophic 2 | . . . 2 Database Lockouts . | . . . . Manual 22 | . 8 10 4 Terminals 23 | . 7 12 4 Fabricators . | . . . . Repair Stations . | . . . . Recycling Units . | . . . . Scanalyzers 4 | . . 3 1 Garrison Access 2 | . . . 2 Terminal Hacks 2 | . 1 1 . Robot Analysis 1 | . . 1 . Terminal Index 1 | . 1 . . Fabricator Hacks . | . . . . Repair Station Hacks . | . . . . Recycling Unit Hacks . | . . . . Scanalyzer 2 | . . 1 1 Retrieve Study 2 | . . 1 1 Garrison Access Hacks . | . . . . Unauthorized Hacks 6 | . 3 3 . Terminals 6 | . 3 3 . Botnet 4 | . 2 2 . Operators 2 | . 1 1 . Fabricators . | . . . . Repair Stations . | . . . . Recycling Units . | . . . . Scanalyzers . | . . . . Garrison Access . | . . . . Data Cores Recovered . | . . . . Used . | . . . . Hacking Detections 9 | . 2 5 2 Full Trace Events 4 | . . 2 2 Feedback Events . | . . . . Feedback Blocked . | . . . . Robot Schematics Acquired . | . . . . Robots Built . | . . . . Authchips . | . . . . Time . | . . . . Total Robot Build Rating . | . . . . Part Schematics Acquired . | . . . . Parts Built . | . . . . Authchips . | . . . . Time . | . . . . Total Part Build Rating . | . . . . Part Studies Acquired 2 | . . 1 1 Parts Repaired . | . . . . Time . | . . . . Parts Recycled . | . . . . Recycled Matter . | . . . . Retrieved Matter . | . . . . Retrieved Components . | . . . . Parts Scanalyzed . | . . . . Part Schematics Acquired . | . . . . Parts Damaged . | . . . . Bothacking | -11 -10 -9 -8 ------------ Run | Yrd Mat Mat Mat Used RIF Installer . | . . . . Robots Hacked . | . . . . Non-combat . | . . . . Combat . | . . . . Robot Hacks Applied . | . . . . Relay Couplers Released . | . . . . Fabnet Peak Effective % . | . . . . Robots Rewired . | . . . . Allies Hacked . | . . . . Hacks Repelled . | . . . . Allies | -11 -10 -9 -8 -------- Run | Yrd Mat Mat Mat Total Allies . | . . . . Largest Group . | . . . . Highest-Rated Group . | . . . . Highest-Rated Ally . | . . . . Total Orders . | . . . . Ally Attacks . | . . . . Total Damage . | . . . . Kills . | . . . . Allies Corrupted . | . . . . Allies Melted . | . . . . Intel | -11 -10 -9 -8 ------- Run | Yrd Mat Mat Mat Active Infowar (turns) 1879 | 55 816 302 706 Optics 706 | . . . 706 Seismic 1173 | 55 816 302 . Robot Analysis Total 1 | . . 1 . Derelict Logs Recovered . | . . . . Drone Launches . | . . . . Drone Recoveries . | . . . . Exploration | -11 -10 -9 -8 ------------- Run | Yrd Mat Mat Mat Turns Passed 2834 | 118 816 1192 708 Spaces Moved 1437 | 66 426 563 382 Core 17 | 6 . . 11 Treads 1263 | 60 426 563 214 Legs . | . . . . Wheels 157 | . . . 157 Hover . | . . . . Flight . | . . . . Fastest Speed 50 | 50 160 160 50 Average Speed 153 | 150 160 162 132 Slowest Speed 240 | 160 160 240 240 Overloaded Moves . | . . . . Propulsion Burnouts . | . . . . Robots Hopped . | . . . . Potential Cave-ins . | . . . . Cave-ins Triggered . | . . . . Exploration Rate (%) 40 | 6 64 51 42 Regions Visited 3 Branch Regions . Pre-discovered Areas . | . . . . Known Exits Taken . | . . . . Unknown Exits Taken 3 | 1 1 1 . Scrap Searched . | . . . . Spaces Dug . | . . . . Terrain Destroyed 33 | . 15 . 18 Melee . | . . . . Projectile . | . . . . AOE 33 | . 15 . 18 Terrain Rammed . | . . . . Walls Destroyed . | . . . . Machines Disabled . | . . . . Actions | -11 -10 -9 -8 --------- Run | Yrd Mat Mat Mat Total 1754 | 78 490 702 484 Wait 36 | . 1 27 8 Move 1434 | 65 425 562 382 Hop . | . . . . Pick Up 28 | 4 10 8 6 Fast Attach 33 | 7 2 11 13 Attach 19 | . . 12 7 Detach 10 | . 1 4 5 Swap 8 | . 3 4 1 Drop 22 | . 7 11 4 Fire 157 | 2 41 63 51 Melee . | . . . . Ram 7 | . . . 7 Kick . | . . . . Crush . | . . . . Escape Stasis . | . . . . Rewire . | . . . . Trap . | . . . . Miscellaneous . | . . . . Route ------- -11/Scrapyard -10/Materials (discovered 4 exits: *Mat x2 / [*Min x2]) -9/Materials (discovered 2 exits: *Mat / [*Min]) -8/Materials (discovered 2 exits: [*Fac] / [*Sto]) History --------- Turn | Location | Event 8 | -11/Scrapyard | Discovered new exit (range 15) 119 | -11/Scrapyard | Entered Materials 183 | -10/Materials | Discovered new exit (range 14) 245 | -10/Materials | Discovered new exit (range 13) 315 | -10/Materials | Build established: Mutant 373 | -10/Materials | Discovered new exit (range 8) 924 | -10/Materials | Discovered new exit (range 7) 935 | -10/Materials | Entered another Materials area 935 | -9/Materials | Evolved 2 slots: Utility x1, Weapon x1 1241 | -9/Materials | Build established: Gunner 1278 | -9/Materials | Lost 3 parts (1n1u1w) 1441 | -9/Materials | Discovered new exit (range 9) 1662 | -9/Materials | Core integrity fell below 50% 2084 | -9/Materials | Discovered new exit (range 15) 2127 | -9/Materials | Entered another Materials area 2127 | -8/Materials | Evolved 2 slots: Power x1, Utility x1 2247 | -8/Materials | Discovered new exit (range 5) 2433 | -8/Materials | Build established: Skirmisher 2522 | -8/Materials | Lost 3 parts (1p1n1w) 2628 | -8/Materials | Lost 6 parts (1p1n1u3w) 2713 | -8/Materials | Core integrity fell below 50% 2747 | -8/Materials | Lost 3 parts (1n1u1w) 2781 | -8/Materials | Core integrity fell below 20% 2817 | -8/Materials | Destroyed 10 combat bots 2832 | -8/Materials | Discovered new exit (range 3) 2835 | -8/Materials | Destroyed by H-61 Shepherd with Heavy Assault Cannon Last Messages --------------- 02776_ Flak Cannon destroyed. 02778_ R-06 Scavenger collects Lgt. Treads+. 02779_ G-47 Trooper destroyed. 02781_ R-06 Scavenger collects Hvy. Assault Rifle. 02782_ Flak Cannon destroyed. 02784_ Acquired Particle Gun. 02785_ R-06 Scavenger collects Aluminum Leg. 02788_ G-47 Trooper destroyed. 02794_ R-06 Scavenger inserts Lgt. Armor Plating into recycling unit. 02796_ G-47 Trooper destroyed. 02797_ R-06 Scavenger inserts Lgt. Treads into recycling unit. 02797_ K-01 Serf collects debris. 02800_ R-06 Scavenger inserts Hvy. Assault Rifle into recycling unit. 02803_ R-06 Scavenger inserts Aluminum Leg into recycling unit. 02814_ Acquired Imp. Light Cannon. 02821_ Acquired Reactive Plating. 02832_ EXIT=FOUND 02833_ Visual Processing Unit destroyed. 02833_ Critical hit (Blast). 02833_ Knocked back. Map ----- +----------------------------------------------------+ | ????+ #### #?? #??????????????# | | ????# # """ ???????????????## " "# ## | | ????# =%/ """"" ?#???????????????# #"G" #? | | ????+ %*# """"" ????????????????# #""" ? | | ????## #######=#??"""" ????????????????# #### ## | | ?????#???????#!#????" ?????????????????###????##? | | ?????????????#=#???? ???????????????????????????? | | ?????????????#%#????/#???????????????????????????? | | ?????????????# ##### #???????????????????????????? | | ?????????????#[ #???????????????????????????? | | ?????????????# ! ####????????????????????????? | | ?????????????#%= """#????????????????????????? | | ?????????????# [ Y"#????????????????????????? | | ?????????????# = """#???????????+????????????? | | ?????????????#! [ ####?????????? ?????????????? | | ?????????????# #??######???? ??????????????? | | ?????????????#### ####?? #### ???????????????? | | ????????????????# #????? ????????????????? | | ????????????????# #????? ?????????????????? | | ????????????????# #????? ??????????????????? | | ????????????????# #????? #???????????????????? | | ??????????????###+####### #????????????????????? | | ??????????????# # #????????????????????? | | ??????????????# #a #????????????????????? | | ??????????????# ! +% #????????????????????? | | ??????????????# #@ #????????????????????? | | ??????????????# [ # H #????????????????????? | | ??????????????# # #????????????????????? | | ??????????????# #####????????????????????? | | ??????????????# #????????????????????????? | | ??????????????###########????????????????????????? | | ?????????????????????????????????????????????????? | | ?????????????????????????????????????????????????? | | ?????????????????????????????????????????????????? | | ?????????????????????????????????????????????????? | | ?????????????????????????????????????????????????? | | ?????????????????????????????????????????????????? | | ?????????????????????????????????????????????????? | | ?????????????????????????????????????????????????? | | ?????????????????????????????????????????????????? | | ?????????????????????????????????????????????????? | | | | | | | | | | | | | | | | | | | +----------------------------------------------------+ Best States ------------- Heat Dissipation 51 Energy Generation 15 Energy Capacity 250 Matter Stores 300 Matter Capacity 300 Sight Range 18 Terrain Scan Density 10 Corruption Block 8 Armor Coverage 225 Resistance: KI 20 Evasion (%) 40 Recoil Reduction 2 Offensive Hacking 10 Item Schematics ----------------- None Robot Schematics ------------------ None Fabricated ------------ Nothing Repaired ---------- Nothing Studied --------- Lgt. Treads | -9/Materials | Hacked Lgt. Nuclear Core | -8/Materials | Hacked Alien Tech Used ----------------- None Achievements -------------- More Dakka Please Challenges ------------ None Game ------ Seed ShockboltGatlingClaws Manual? 0 Play Time 00:30:20 Cumulative 29.0 hours Start 2026.01.24 @ 07:14:56 End 2026.01.24 @ 07:44:46 Sessions 1 Manual Loads 0 Difficulty Rogue Special Mode None Game No. 36 Rogue 36 Adventurer 0 Explorer 0 Win Type - Total 0 Types 0/0/0/0/0/0/0/0/0/0 Lore% 21 Gallery% 31 Achievement% 23 Wizard Run 0 Options --------- Layout 0 ASCII 0 Keyboard 1 Movement Arrows Keybinds 0 Fullscreen 1 Font 18/SmallcapsGlow Map View 76x50 Zoom Use 0% Tactical HUD 1 Map Filters NONE Filters NONE Steam 1 RUN: eb2413c4-edfd-4d0f-888f-7dc38ab1f961